bitfinex-derivatives/quotes_ETHF0:USTF0_20260119
["timestamp","ask_amount","ask_price","bid_price","bid_amount"]
[1768853231839,0.88479454,3222.9,3221.8,0.13443573]
[1768853232034,0.88479454,3222.8,3221.8,0.13443573]
[1768853232240,0.15521,3223.1,3221.8,0.13443573]
[1768853232439,0.88478115,3223.0,3221.8,0.13443573]
[1768853232638,0.88478115,3222.9,3221.8,0.13443573]
[1768853232844,0.88478115,3222.8,3221.8,0.13443573]
[1768853233044,0.15521,3223.1,3221.8,0.13443573]
[1768853233246,0.88478115,3223.0,3221.8,0.13443573]
[1768853233542,0.88478115,3222.9,3221.8,0.13443573]
[1768853233745,0.88478115,3222.8,3221.8,0.13443573]
[1768853233938,0.15521,3223.1,3221.8,0.13443573]
[1768853234141,0.88476794,3223.0,3221.8,0.13443573]
[1768853234340,0.15521,3223.1,3221.8,0.13443573]
[1768853234341,0.88476794,3222.9,3221.8,0.13443573]
[1768853234542,0.88476794,3222.8,3221.8,0.13443573]
[1768853234742,0.15521,3223.1,3221.8,0.13443573]
[1768853234944,0.88476186,3223.0,3221.8,0.13443573]
[1768853235247,0.88476186,3222.9,3221.8,0.13443573]
[1768853235444,0.88476186,3222.8,3221.8,0.13443573]
[1768853235646,0.15521,3223.1,3221.8,0.13443573]
[1768853235847,0.88475733,3223.0,3221.8,0.13443573]
[1768853236145,0.88475733,3222.9,3221.8,0.13443573]
[1768853236344,0.88475733,3222.8,3221.8,0.13443573]
[1768853236550,0.15521,3223.1,3221.8,0.13443573]
[1768853236749,0.88475339,3223.0,3221.8,0.13443573]
[1768853236948,0.88475339,3222.9,3221.8,0.13443573]
[1768853237151,0.88475339,3222.8,3221.8,0.13443573]
[1768853237352,0.15521,3223.1,3221.8,0.13443573]
[1768853237557,0.88474936,3223.0,3221.8,0.13443573]
[1768853237753,0.88474936,3222.9,3221.8,0.13443573]
[1768853237950,0.88474936,3222.8,3221.8,0.13443573]
[1768853238154,0.15521,3223.1,3221.8,0.13443573]
[1768853238362,0.88474715,3223.0,3221.8,0.13443573]
[1768853238651,0.88474715,3222.9,3221.8,0.13443573]
[1768853238841,0.88474715,3222.8,3221.8,0.13443573]
[1768853239045,0.15521,3223.1,3221.8,0.13443573]
[1768853239345,0.88474715,3223.0,3221.8,0.13443573]
[1768853239546,0.88474715,3222.9,3221.8,0.13443573]
[1768853239746,0.88474715,3222.8,3221.8,0.13443573]
[1768853239947,0.15521,3223.1,3221.8,0.13443573]
[1768853240150,0.88474704,3223.0,3221.8,0.13443573]
[1768853240349,0.88474704,3222.9,3221.8,0.13443573]
[1768853240550,0.88474704,3222.8,3221.8,0.13443573]
[1768853240750,0.15521,3223.1,3221.8,0.13443573]
[1768853240950,0.88474864,3223.0,3221.8,0.13443573]
[1768853241153,0.88474864,3222.9,3221.8,0.13443573]
[1768853241352,0.88474864,3222.8,3221.8,0.13443573]
[1768853241553,0.15521,3223.1,3221.8,0.13443573]
[1768853241754,0.88475018,3223.0,3221.8,0.13443573]
[1768853241952,0.88475018,3222.9,3221.8,0.13443573]
[1768853242153,0.88475018,3222.8,3221.8,0.13443573]
[1768853242450,0.15521,3223.1,3221.8,0.13443573]
[1768853242656,0.88473866,3223.0,3221.8,0.13443573]
[1768853242957,0.88473866,3222.9,3221.8,0.13443573]
[1768853243155,0.88473866,3222.8,3221.8,0.13443573]
[1768853243357,0.15521,3223.1,3221.8,0.13443573]
[1768853243556,0.88474533,3223.0,3221.8,0.13443573]
[1768853243760,0.88474533,3222.9,3221.8,0.13443573]
[1768853244057,0.88474533,3222.8,3221.8,0.13443573]
[1768853244257,0.15521,3223.1,3221.8,0.13443573]
[1768853244457,0.88083977,3223.0,3221.8,0.13443573]
[1768853244652,0.88083977,3222.9,3221.8,0.13443573]
[1768853244959,0.88083977,3222.8,3221.8,0.13443573]
[1768853245260,0.15521,3223.1,3221.8,0.13443573]
[1768853245467,0.88086025,3223.0,3221.8,0.13443573]
[1768853245652,0.88086025,3222.9,3221.8,0.13443573]
[1768853245847,0.88086025,3222.8,3221.8,0.13443573]
[1768853246052,0.15521,3223.1,3221.8,0.13443573]
[1768853246251,0.88086025,3223.0,3221.8,0.13443573]
[1768853246455,0.88086025,3222.9,3221.8,0.13443573]
[1768853246658,0.88086025,3222.8,3221.8,0.13443573]
[1768853246852,0.15521,3223.1,3221.8,0.13443573]
[1768853247052,0.88087512,3223.0,3221.8,0.13443573]
[1768853247249,0.88087512,3222.9,3221.8,0.13443573]
[1768853247459,0.88087512,3222.8,3221.8,0.13443573]
[1768853247660,0.15521,3223.1,3221.8,0.13443573]
[1768853247859,0.88089549,3223.0,3221.8,0.13443573]
[1768853248061,0.88089549,3222.9,3221.8,0.13443573]
[1768853248261,0.88089549,3222.8,3221.8,0.13443573]
[1768853248468,0.15521,3223.1,3221.8,0.13443573]
[1768853248658,0.88091978,3223.0,3221.8,0.13443573]
[1768853248857,0.88091978,3222.9,3221.8,0.13443573]
[1768853249060,0.88091978,3222.8,3221.8,0.13443573]
[1768853249257,0.15521,3223.1,3221.8,0.13443573]
[1768853249456,0.88094236,3223.0,3221.8,0.13443573]
[1768853249660,0.88094236,3222.9,3221.8,0.13443573]
[1768853249863,0.88094236,3222.8,3221.8,0.13443573]
[1768853250065,0.15521,3223.1,3221.8,0.13443573]
[1768853250268,0.88093964,3223.0,3221.8,0.13443573]
[1768853250563,0.88093964,3222.9,3221.8,0.13443573]
[1768853250763,0.15521,3223.1,3221.8,0.13443573]
[1768853250764,0.88093964,3222.8,3221.8,0.13443573]
[1768853250959,0.15521,3223.1,3221.8,0.13443573]
[1768853251158,0.88094123,3223.0,3221.8,0.13443573]
[1768853251358,0.88094123,3222.9,3221.8,0.13443573]
[1768853251663,0.15521,3223.1,3221.8,0.13443573]
[1768853251664,0.88094123,3222.8,3221.8,0.13443573]
[1768853251860,0.15521,3223.1,3221.8,0.13443573]
[1768853252068,0.88097596,3223.0,3221.8,0.13443573]
[1768853252274,0.88097596,3222.9,3221.8,0.13443573]
[1768853252582,1.6771234,3223.4,3222.0,0.13837356]
[1768853252753,0.88100793,3223.3,3222.0,0.13837356]
[1768853252951,0.88100793,3223.2,3222.0,0.13837356]
[1768853253151,0.88100793,3223.1,3222.0,0.13837356]
[1768853253364,0.88100793,3223.0,3222.0,0.13837356]
[1768853253565,1.6771234,3223.6,3222.0,0.13837356]
[1768853253766,1.17564328,3223.5,3222.0,0.13837356]
[1768853253962,1.17564328,3223.4,3222.0,0.13837356]
[1768853254164,0.88083737,3223.3,3222.0,0.13837356]
[1768853254357,0.88083737,3223.2,3222.0,0.13837356]
[1768853254665,0.88083737,3223.1,3222.0,0.13837356]
[1768853254965,0.88083737,3223.0,3222.0,0.13837356]
[1768853255164,1.6771234,3223.6,3222.0,0.13837356]
[1768853255367,1.1754063,3223.5,3222.1,0.13837356]
[1768853255567,0.88066329,3223.4,3222.2,0.13837356]
[1768853255771,0.88066329,3223.3,3222.2,0.13837356]
[1768853256064,0.88066329,3223.2,3222.2,0.13837356]
[1768853256264,0.88066329,3223.1,3222.2,0.13837356]
[1768853256465,3.5673034,3223.7,3222.2,0.29362356]
[1768853256654,1.17519644,3223.6,3222.2,0.29362356]
[1768853256952,0.88050802,3223.5,3222.2,0.29362356]
[1768853257154,0.88050802,3223.4,3222.3,0.13837356]
[1768853257365,0.88050802,3223.3,3222.3,0.13837356]
[1768853257569,1.89018,3223.7,3222.3,0.13837356]
[1768853257767,0.88023672,3223.6,3222.3,0.13837356]
[1768853258066,0.88023672,3223.5,3222.3,0.13837356]
[1768853258258,0.88023672,3223.4,3222.3,0.13837356]
[1768853258458,0.88023672,3223.3,3222.3,0.13837356]
[1768853258750,1.89018,3223.7,3222.3,0.13837356]
[1768853258966,1.28478551,3223.5,3222.3,0.13837356]
[1768853259164,0.88005565,3223.4,3222.3,0.13837356]
[1768853259366,1.28478551,3223.5,3222.3,0.13837356]
[1768853259568,0.87991219,3223.4,3222.3,0.13837356]
[1768853259766,1.28478551,3223.5,3222.3,0.13837356]
[1768853259958,0.87991219,3223.4,3222.3,0.13837356]
[1768853260157,1.28478551,3223.5,3222.3,0.13837356]
[1768853260368,0.87979673,3223.4,3222.3,0.13837356]
[1768853260570,1.28478551,3223.5,3222.3,0.13837356]
[1768853260871,2.16458263,3223.4,3222.3,0.13837356]
[1768853261170,1.28478551,3223.4,3222.3,0.13837356]
[1768853279383,0.88063355,3223.3,3222.3,0.13837356]
[1768853279575,1.28478551,3223.4,3222.3,0.13837356]
[1768853280275,0.88075336,3223.3,3222.3,0.13837356]
[1768853280471,1.28478551,3223.4,3222.3,0.13837356]
[1768853280671,0.88076152,3223.3,3222.3,0.13837356]
[1768853280876,1.28478551,3223.4,3222.3,0.13837356]
[1768853281084,0.88076043,3223.3,3222.3,0.13837356]
[1768853281275,1.28478551,3223.4,3222.3,0.13837356]
[1768853281476,0.88094709,3223.3,3222.3,0.13837356]
[1768853281676,1.28478551,3223.4,3222.3,0.13837356]
[1768853281883,0.88094709,3223.3,3222.3,0.13837356]
[1768853282085,1.28478551,3223.4,3222.3,0.13837356]
[1768853282286,0.88093558,3223.3,3222.3,0.13837356]
[1768853282591,1.28478551,3223.4,3222.3,0.13837356]
[1768853282776,0.88120528,3223.3,3222.3,0.13837356]
[1768853282976,1.28478551,3223.4,3222.3,0.13837356]
[1768853283177,0.88120473,3223.3,3222.3,0.13837356]
[1768853283377,1.28478551,3223.4,3222.3,0.13837356]
[1768853283587,0.8813033,3223.3,3222.3,0.13837356]
[1768853283784,1.28478551,3223.4,3222.3,0.13837356]
[1768853283983,0.88130333,3223.3,3222.3,0.13837356]
[1768853284185,1.28478551,3223.4,3222.3,0.13837356]
[1768853284384,0.88143007,3223.3,3222.3,0.13837356]
[1768853284587,1.28478551,3223.4,3222.3,0.13837356]
[1768853284886,0.88143007,3223.3,3222.3,0.13837356]
[1768853285085,1.28478551,3223.4,3222.3,0.13837356]
[1768853285282,0.88143645,3223.3,3222.3,0.13837356]
[1768853285485,0.88143645,3223.2,3222.3,0.13837356]
[1768853285692,1.28478551,3223.6,3222.3,0.13837356]
[1768853285890,0.8816391,3223.5,3222.3,0.13837356]
[1768853286187,0.8816391,3223.4,3222.3,0.13837356]
[1768853286382,0.8816391,3223.3,3222.3,0.13837356]
[1768853286574,0.8816391,3223.2,3222.3,0.13837356]
[1768853286775,1.28478551,3223.6,3222.3,0.13837356]
[1768853286989,0.88178995,3223.5,3222.3,0.13837356]
[1768853287189,1.28478551,3223.6,3222.3,0.13837356]
[1768853287190,0.88178995,3223.4,3222.3,0.13837356]
[1768853287377,0.88178995,3223.3,3222.3,0.13837356]
[1768853287582,0.88178995,3223.2,3222.3,0.13837356]
[1768853287781,1.28478551,3223.0,3222.2,0.15525]
[1768853287996,1.28478551,3223.2,3222.2,0.15525]
[1768853288196,3.58624326,3223.7,3222.2,0.15525]
[1768853288382,1.28478551,3223.3,3222.2,0.15525]
[1768853288582,0.88174675,3223.2,3222.2,0.15525]
[1768853288781,1.28478551,3223.3,3222.2,0.15525]
[1768853288995,0.88173869,3223.2,3222.2,0.15525]
[1768853289182,1.28478551,3223.3,3222.2,0.15525]
[1768853289384,0.88173731,3223.2,3222.2,0.15525]
[1768853289582,1.28478551,3223.3,3222.2,0.15525]
[1768853289883,0.88176008,3223.2,3222.2,0.15525]
[1768853290090,1.28478551,3223.3,3222.2,0.15525]
[1768853290282,0.88174886,3223.2,3222.2,0.15525]
[1768853290487,1.28478551,3223.3,3222.2,0.15525]
[1768853290689,0.88175332,3223.2,3222.2,0.15525]
[1768853290894,1.28478551,3223.3,3222.2,0.15525]
[1768853291201,0.88175333,3223.2,3222.2,0.15525]
[1768853291383,1.28478551,3223.3,3222.2,0.15525]
[1768853291584,0.88173945,3223.2,3222.2,0.15525]
[1768853291784,1.28478551,3223.3,3222.2,0.15525]
[1768853291980,0.88174543,3223.2,3222.2,0.15525]
[1768853292186,1.28478551,3223.3,3222.2,0.15525]
[1768853292396,0.88174129,3223.2,3222.2,0.15525]
[1768853292592,1.28478551,3223.3,3222.2,0.15525]
[1768853292892,0.88174127,3223.2,3222.2,0.15525]
[1768853293093,1.28478551,3223.3,3222.2,0.15525]
[1768853293392,0.88173953,3223.2,3222.2,0.15525]
[1768853293596,1.28478551,3223.3,3222.2,0.15525]
[1768853293794,0.88173782,3223.2,3222.2,0.15525]
[1768853293995,1.28478551,3223.3,3222.2,0.15525]
[1768853294196,0.88173668,3223.2,3222.2,0.15525]
[1768853294494,1.28478551,3223.3,3222.2,0.15525]
[1768853294696,0.88173389,3223.2,3222.2,0.15525]
[1768853294896,1.28478551,3223.3,3222.2,0.15525]
[1768853295087,0.88173389,3223.2,3222.2,0.15525]
[1768853295288,1.28478551,3223.3,3222.2,0.15525]
[1768853295493,0.88172961,3223.2,3222.2,0.15525]
[1768853295689,1.28478551,3223.3,3222.2,0.15525]
[1768853295898,1.28478551,3222.4,3221.6,2.95438618]
[1768853296393,1.28478551,3222.6,3221.6,2.95438618]
[1768853297886,1.28478551,3222.2,3221.6,0.00310618]
[1768853298089,0.00236164,3222.2,3221.6,0.00310618]
[1768853311214,0.00236164,3222.2,3221.6,0.1460605]
[1768853340328,0.00236164,3222.2,3221.6,0.00310618]
[1768853340533,0.00236164,3222.2,3221.5,0.14337328]
[1768853340831,0.15522,3223.0,3221.5,0.14337328]
[1768853341039,0.88694734,3222.9,3221.6,0.14337328]
[1768853341239,0.88694734,3222.8,3221.6,0.14337328]
[1768853341441,0.88694734,3222.7,3221.6,0.14337328]
[1768853341642,0.88694734,3222.6,3221.6,0.14706841]
[1768853341832,0.00384541,3222.7,3221.6,0.14706841]
[1768853342033,0.88577055,3222.6,3221.6,0.14706841]
[1768853342239,0.00384541,3222.7,3221.6,0.14706841]
[1768853342433,0.88576809,3222.6,3221.6,0.14706841]
[1768853342638,0.00384541,3222.7,3221.6,0.14706841]
[1768853342835,0.88576794,3222.6,3221.6,0.14706841]
[1768853343042,0.00384541,3222.7,3221.6,0.30234841]
[1768853343246,0.00384541,3222.7,3221.6,0.14706841]
[1768853344142,0.00384541,3222.7,3221.8,0.14337328]
[1768853344345,0.00063663,3222.7,3221.8,0.14337328]
[1768853345945,0.00063663,3222.7,3221.9,0.14337328]
[1768853346244,1.6771234,3223.8,3222.2,0.14337328]
[1768853346435,0.88473228,3223.7,3222.2,0.14337328]
[1768853346639,0.88473228,3223.6,3222.2,0.14337328]
[1768853346841,0.88473228,3223.5,3222.2,0.14337328]
[1768853347042,0.88473228,3223.4,3222.2,0.14337328]
[1768853352254,0.00361429,3223.5,3222.2,0.14337328]
[1768853353756,0.00361429,3223.5,3222.2,0.29862328]
[1768853354454,0.00361429,3223.5,3222.3,0.14337328]
[1768853368159,0.88329883,3223.4,3222.3,0.14337328]
[1768853368361,0.00361429,3223.5,3222.3,0.14337328]
[1768853368562,0.88332528,3223.4,3222.3,0.14337328]
[1768853368860,0.00361429,3223.5,3222.3,0.14337328]
[1768853369052,0.88332566,3223.4,3222.3,0.14337328]
[1768853369253,0.00361429,3223.5,3222.3,0.14337328]
[1768853369551,0.88352157,3223.4,3222.3,0.14337328]
[1768853369752,0.00361429,3223.5,3222.3,0.14337328]
[1768853369953,0.88354501,3223.4,3222.3,0.14337328]
[1768853370154,1.28542983,3223.2,3221.7,0.14176851]
[1768853370358,0.88357128,3223.1,3221.7,0.14176851]
[1768853375756,0.88357128,3223.0,3221.8,0.14176851]
[1768853375953,0.15880429,3223.5,3221.8,0.14176851]
[1768853376152,0.88436768,3223.4,3221.9,0.14176851]
[1768853376363,0.88436768,3223.3,3221.9,0.14176851]
[1768853376559,0.88436768,3223.2,3221.9,0.14176851]
[1768853376759,0.15880429,3223.5,3221.9,0.14176851]
[1768853376959,0.88429321,3223.4,3221.9,0.14176851]
[1768853377263,0.88429321,3223.3,3221.9,0.14176851]
[1768853377463,0.88429321,3223.2,3221.9,0.14176851]
[1768853377662,0.15880429,3223.5,3221.9,0.14176851]
[1768853377863,0.88428544,3223.4,3221.9,0.14176851]
[1768853378062,0.88428544,3223.3,3221.9,0.14176851]
[1768853378262,0.88428544,3223.2,3221.9,0.14176851]
[1768853378466,0.15880429,3223.5,3221.9,0.14176851]
[1768853378666,0.88428068,3223.4,3221.9,0.14176851]
[1768853378966,0.88428068,3223.3,3221.9,0.29703851]
[1768853379165,0.88428068,3223.2,3222.0,0.14176851]
[1768853379467,0.15880429,3223.5,3222.0,0.14176851]
[1768853379663,0.88427623,3223.4,3222.0,0.14176851]
[1768853379863,0.88427623,3223.3,3222.0,0.14176851]
[1768853380064,0.88427623,3223.2,3222.0,0.14176851]
[1768853380263,0.15880429,3223.5,3222.0,0.14176851]
[1768853380464,0.88427247,3223.4,3222.0,0.14176851]
[1768853380763,0.88427247,3223.3,3222.0,0.14176851]
[1768853381060,0.88427247,3223.2,3222.0,0.14176851]
[1768853381266,0.15880429,3223.5,3222.0,0.14176851]
[1768853381564,0.88427392,3223.4,3222.0,0.14176851]
[1768853381761,0.88427392,3223.3,3222.0,0.14176851]
[1768853381962,0.88427392,3223.2,3222.0,0.14176851]
[1768853382162,0.15880429,3223.5,3222.0,0.14176851]
[1768853382463,0.88427683,3223.4,3222.0,0.14176851]
[1768853382662,0.88427683,3223.3,3222.0,0.14176851]
[1768853382869,0.15880429,3223.5,3222.0,0.14176851]
[1768853382870,0.88427683,3223.2,3222.1,0.13081279]
[1768853383057,1.28496117,3223.4,3222.1,0.13081279]
[1768853383259,0.88427685,3223.3,3222.1,0.13081279]
[1768853383459,0.88427685,3223.2,3222.1,0.13081279]
[1768853383655,1.28496117,3223.4,3222.1,0.13081279]
[1768853383854,0.88428239,3223.3,3222.1,0.13081279]
[1768853384060,0.88428239,3223.2,3222.1,0.13081279]
[1768853384254,1.28496117,3223.4,3222.1,0.13081279]
[1768853384468,0.88429314,3223.3,3222.1,0.13081279]
[1768853384672,0.88429314,3223.2,3222.1,0.13081279]
[1768853384865,1.28496117,3223.4,3222.1,0.13081279]
[1768853385164,0.88429368,3223.3,3222.1,0.13081279]
[1768853385364,0.88429368,3223.2,3222.1,0.13081279]
[1768853385569,1.28496117,3223.4,3222.1,0.13081279]
[1768853385761,0.88430779,3223.3,3222.1,0.13081279]
[1768853385962,0.88430779,3223.2,3222.1,0.13081279]
[1768853386262,1.28496117,3223.4,3222.1,0.13081279]
[1768853386460,0.8843237,3223.3,3222.1,0.13081279]
[1768853386670,0.8843237,3223.2,3222.1,0.13081279]
[1768853386872,1.28496117,3223.4,3222.1,0.13081279]
[1768853387066,0.88432606,3223.3,3222.1,0.13081279]
[1768853387365,0.88432606,3223.2,3222.1,0.13081279]
[1768853387565,0.88432606,3223.1,3222.1,0.13081279]
[1768853387758,1.28496117,3223.4,3222.1,0.13081279]
[1768853387965,0.88434709,3223.3,3222.1,0.13081279]
[1768853388271,0.88434709,3223.2,3222.1,0.13081279]
[1768853388459,0.88434709,3223.1,3222.1,0.13081279]
[1768853388662,1.28496117,3223.4,3222.1,0.13081279]
[1768853388862,0.88437183,3223.3,3222.1,0.13081279]
[1768853389073,0.88437183,3223.2,3222.1,0.13081279]
[1768853389275,0.88437183,3223.1,3222.1,0.13081279]
[1768853389476,1.28496117,3223.4,3222.1,0.13081279]
[1768853389682,0.88438988,3223.3,3222.1,0.13081279]
[1768853389973,0.88438988,3223.2,3222.1,0.13081279]
[1768853390175,0.88438988,3223.1,3222.1,0.13081279]
[1768853390376,1.28496117,3223.4,3222.1,0.13081279]
[1768853390566,0.88441777,3223.3,3222.1,0.13081279]
[1768853390762,0.88441777,3223.2,3222.1,0.13081279]
[1768853390977,0.88441777,3223.1,3222.1,0.13081279]
[1768853391177,1.28496117,3223.4,3222.1,0.13081279]
[1768853391386,0.88444514,3223.3,3222.1,0.13081279]
[1768853391578,0.88444514,3223.2,3222.1,0.13081279]
[1768853391783,0.88444514,3223.1,3222.1,0.13081279]
[1768853391975,1.28496117,3223.4,3222.1,0.13081279]
[1768853392176,0.88445629,3223.3,3222.1,0.13081279]
[1768853392479,0.88445629,3223.2,3222.1,0.13081279]
[1768853392775,0.88445629,3223.1,3222.1,0.13081279]
[1768853392976,1.28496117,3223.4,3222.1,0.13081279]
[1768853393171,0.88448951,3223.3,3222.1,0.13081279]
[1768853393373,0.88448951,3223.2,3222.1,0.13081279]
[1768853393571,1.28496117,3223.4,3222.1,0.13081279]
[1768853393572,0.88448951,3223.1,3222.1,0.13081279]
[1768853393771,1.28496117,3223.4,3222.1,0.13081279]
[1768853393975,0.88453412,3223.3,3222.1,0.13081279]
[1768853394173,0.88453412,3223.2,3222.1,0.13081279]
[1768853394376,0.88453412,3223.1,3222.1,0.13081279]
[1768853394577,1.28496117,3223.4,3222.1,0.13081279]
[1768853394769,0.883827,3223.3,3222.1,0.13081279]
[1768853394971,0.883827,3223.2,3222.1,0.13081279]
[1768853395269,0.883827,3223.1,3222.1,0.13081279]
[1768853395469,1.28496117,3223.4,3222.1,0.13081279]
[1768853395680,0.8838559,3223.3,3222.1,0.13081279]
[1768853395878,0.8838559,3223.2,3222.1,0.13081279]
[1768853396178,0.8838559,3223.1,3222.1,0.13081279]
[1768853396380,1.28496117,3223.4,3222.1,0.13081279]
[1768853396575,0.88391322,3223.3,3222.1,0.13081279]
[1768853396876,0.88391322,3223.2,3222.1,0.13081279]
[1768853397075,0.88391322,3223.1,3222.1,0.13081279]
[1768853397276,1.28496117,3223.4,3222.1,0.13081279]
[1768853397470,0.88397861,3223.3,3222.1,0.13081279]
[1768853397667,0.88397861,3223.2,3222.1,0.13081279]
[1768853397866,0.88397861,3223.1,3222.1,0.13081279]
[1768853398079,1.28496117,3223.4,3222.1,0.13081279]
[1768853398271,0.88397807,3223.3,3222.1,0.13081279]
[1768853398470,0.88397807,3223.2,3222.1,0.13081279]
[1768853398676,0.88397807,3223.1,3222.1,0.13081279]
[1768853398883,1.28496117,3223.4,3222.1,0.13081279]
[1768853399179,0.88405682,3223.3,3222.1,0.13081279]
[1768853399380,0.88405682,3223.2,3222.1,0.13081279]
[1768853399680,0.88405682,3223.1,3222.1,0.13081279]
[1768853399879,1.28496117,3223.4,3222.1,0.13081279]
[1768853400072,0.8841543,3223.3,3222.1,0.13081279]
[1768853400270,0.8841543,3223.2,3222.1,0.13081279]
[1768853400471,0.8841543,3223.1,3222.1,0.13081279]
[1768853400679,1.28496117,3223.4,3222.1,0.13081279]
[1768853400884,0.88415829,3223.3,3222.1,0.13081279]
[1768853401177,0.88415829,3223.2,3222.1,0.13081279]
[1768853401369,0.88415829,3223.1,3222.1,0.13081279]
[1768853401567,1.28496117,3223.4,3222.1,0.13081279]
[1768853401765,0.88421669,3223.3,3222.1,0.13081279]
[1768853401972,0.88421669,3223.2,3222.1,0.13081279]
[1768853402272,0.88421669,3223.1,3222.1,0.13081279]
[1768853402570,1.28496117,3223.4,3222.1,0.13081279]
[1768853402772,0.88424527,3223.3,3222.1,0.13081279]
[1768853402973,0.88424527,3223.2,3222.1,0.13081279]
[1768853403172,0.88424527,3223.1,3222.1,0.13081279]
[1768853403373,1.28496117,3223.4,3222.1,0.13081279]
[1768853403573,0.88430899,3223.3,3222.1,0.13081279]
[1768853403773,0.88430899,3223.2,3222.1,0.13081279]
[1768853403972,0.88430899,3223.1,3222.1,0.13081279]
[1768853404173,1.28496117,3223.4,3222.1,0.13081279]
[1768853404375,0.88437395,3223.3,3222.1,0.13081279]
[1768853404673,0.88437395,3223.2,3222.1,0.13081279]
[1768853404874,0.88437395,3223.1,3222.1,0.13081279]
[1768853405073,0.88437395,3223.0,3222.1,0.13081279]
[1768853405274,1.28496117,3223.4,3222.1,0.13081279]
[1768853405577,0.8844562,3223.3,3222.1,0.13081279]
[1768853405774,0.8844562,3223.2,3222.1,0.13081279]
[1768853405976,0.8844562,3223.1,3222.1,0.13081279]
[1768853406177,0.8844562,3223.0,3222.1,0.13081279]
[1768853406483,1.28496117,3223.4,3222.1,0.13081279]
[1768853406677,0.88453764,3223.3,3222.1,0.13081279]
[1768853406877,0.88453764,3223.2,3222.1,0.13081279]
[1768853407078,0.88453764,3223.1,3222.1,0.13081279]
[1768853407385,0.88453764,3223.0,3222.1,0.13081279]
[1768853407683,1.28496117,3223.4,3222.1,0.13081279]
[1768853407874,0.88451928,3223.3,3222.1,0.13081279]
[1768853408074,0.88451928,3223.2,3222.1,0.13081279]
[1768853408282,0.88451928,3223.1,3222.1,0.13081279]
[1768853408487,0.88451928,3223.0,3222.1,0.13081279]
[1768853408678,1.28496117,3223.4,3222.1,0.13081279]
[1768853408983,0.88448778,3223.3,3222.1,0.13081279]
[1768853409182,0.88448778,3223.2,3222.1,0.13081279]
[1768853409384,0.88448778,3223.1,3222.1,0.13081279]
[1768853409585,0.88448778,3223.0,3222.1,0.13081279]
[1768853409782,1.28496117,3223.4,3222.1,0.13081279]
[1768853409985,0.88447437,3223.3,3222.1,0.13081279]
[1768853410183,0.88447437,3223.2,3222.1,0.13081279]
[1768853410484,0.88447437,3223.1,3222.1,0.13081279]
[1768853410686,0.88447437,3223.0,3222.1,0.13081279]
[1768853410982,1.28496117,3223.4,3222.1,0.13081279]
[1768853411184,0.88445055,3223.3,3222.1,0.13081279]
[1768853411383,0.88445055,3223.2,3222.1,0.13081279]
[1768853411583,0.88445055,3223.1,3222.1,0.13081279]
[1768853411785,0.88445055,3223.0,3222.1,0.13081279]
[1768853411984,1.28496117,3223.4,3222.1,0.13081279]
[1768853412174,0.88445053,3223.3,3222.1,0.13081279]
[1768853412374,2.1694117,3223.2,3221.9,0.15527]
[1768853412582,1.28496117,3223.0,3221.9,0.15527]
[1768853431602,1.28496117,3222.8,3221.9,0.15527]
[1768853432809,1.86527688,3223.4,3221.9,0.15527]
[1768853433010,1.28496117,3222.9,3221.9,0.15527]
[1768853433712,1.28496117,3223.1,3221.9,0.15527]
[1768853433910,0.88389654,3223.0,3221.9,0.15527]
[1768853434111,0.88389654,3222.9,3221.9,0.15527]
[1768853434312,1.28496117,3223.1,3221.9,0.15527]
[1768853434511,0.88388374,3223.0,3221.9,0.15527]
[1768853434710,0.88388374,3222.9,3221.9,0.15527]
[1768853434913,1.28496117,3223.1,3221.9,0.15527]
[1768853435115,0.88388359,3223.0,3221.9,0.15527]
[1768853435414,0.88388359,3222.9,3221.9,0.15527]
[1768853435613,1.28496117,3223.1,3221.9,0.15527]
[1768853435808,0.8838779,3223.0,3221.9,0.15527]
[1768853436011,0.8838779,3222.9,3221.9,0.15527]
[1768853436214,1.28496117,3223.1,3221.9,0.15527]
[1768853436516,0.88387983,3223.0,3221.9,0.15527]
[1768853436710,0.88387983,3222.9,3221.9,0.15527]
[1768853436915,1.28496117,3223.1,3221.9,0.15527]
[1768853437111,0.88387871,3223.0,3221.9,0.15527]
[1768853437317,0.88387871,3222.9,3221.9,0.15527]
[1768853437516,1.28496117,3223.1,3221.9,0.15527]
[1768853437720,0.88387607,3223.0,3221.9,0.15527]
[1768853437910,0.88387607,3222.9,3221.9,0.15527]
[1768853438111,1.28496117,3223.1,3221.9,0.15527]
[1768853438310,0.88387173,3223.0,3221.9,0.15527]
[1768853438513,0.88387173,3222.9,3221.9,0.15527]
[1768853438712,1.28496117,3223.1,3221.9,0.15527]
[1768853438919,0.88387067,3223.0,3221.9,0.15527]
[1768853439116,0.88387067,3222.9,3221.9,0.15527]
[1768853439418,1.28496117,3223.1,3221.9,0.15527]
[1768853439617,0.88387202,3223.0,3221.9,0.15527]
[1768853439816,0.88387202,3222.9,3221.9,0.15527]
[1768853440016,1.28496117,3223.1,3221.9,0.15527]
[1768853440220,0.88387693,3223.0,3221.9,0.15527]
[1768853440518,0.88387693,3222.9,3221.9,0.15527]
[1768853440820,1.28496117,3223.1,3221.9,0.15527]
[1768853441006,0.88387693,3223.0,3221.9,0.15527]
[1768853441211,0.88387693,3222.9,3221.9,0.15527]
[1768853441419,1.28496117,3223.1,3221.9,0.15527]
[1768853441620,0.88388494,3223.0,3221.9,0.15527]
[1768853441817,0.88388494,3222.9,3221.9,0.15527]
[1768853442017,1.28496117,3223.1,3221.9,0.15527]
[1768853442220,0.88389616,3223.0,3221.9,0.15527]
[1768853442419,0.88389616,3222.9,3221.9,0.15527]
[1768853442612,1.28496117,3223.1,3221.9,0.15527]
[1768853442812,0.8838971,3223.0,3221.9,0.15527]
[1768853443018,0.8838971,3222.9,3221.9,0.15527]
[1768853443220,1.86527688,3223.4,3221.9,0.15527]
[1768853443421,1.17870621,3223.3,3221.9,0.15527]
[1768853443719,0.88389318,3223.2,3221.9,0.15527]
[1768853443909,0.88389318,3223.1,3221.9,0.15527]
[1768853444113,0.88389318,3223.0,3221.9,0.15527]
[1768853444413,0.88389318,3222.9,3221.9,0.15527]
[1768853444709,1.86527688,3223.4,3221.9,0.15527]
[1768853444914,1.17870122,3223.3,3221.9,0.15527]
[1768853445110,0.88388944,3223.2,3221.9,0.15527]
[1768853445317,0.88388944,3223.1,3221.9,0.15527]
[1768853445515,0.88388944,3223.0,3221.9,0.15527]
[1768853445713,0.88388944,3222.9,3221.9,0.15527]
[1768853445927,1.86527688,3223.4,3221.9,0.15527]
[1768853446124,1.1786968,3223.3,3221.9,0.15527]
[1768853446331,0.88388618,3223.2,3221.9,0.15527]
[1768853446627,0.88388618,3223.1,3221.9,0.15527]
[1768853446828,0.88388618,3223.0,3221.9,0.15527]
[1768853447025,0.88388618,3222.9,3221.9,0.15527]
[1768853447229,1.86527688,3223.4,3221.9,0.15527]
[1768853447428,1.1787018,3223.3,3221.9,0.15527]
[1768853447630,0.88388993,3223.2,3221.9,0.15527]